fUST/lending_fUST_20240503
["ID","MTS","AMOUNT","RATE_DAILY","PERIOD"]
[325314523,1714704432438,-2466.01464896,0.00020909,2]
[325314524,1714704432457,-164.63504971,0.00020911,2]
[325314525,1714704432476,-154.73694719,0.00020912,2]
[325314526,1714704432494,-417.45090488,0.00020913,2]
[325314527,1714704432513,-3916.0043177,0.00021918,2]
[325314528,1714704432532,-166.666666,0.00021918,2]
[325314529,1714704432552,-229.13179572,0.00022,2]
[325314530,1714704432571,-159.311331,0.00022,2]
[325314531,1714704432596,-493.0,0.00022297,2]
[325314532,1714704432615,-150.0,0.00022297,2]
[325314533,1714704432636,-166.666666,0.00022431,2]
[325314534,1714704432688,-166.666666,0.00022944,2]
[325314535,1714704432800,-714.56650019,0.00023,2]
[325314536,1714704432821,-166.666666,0.00023456,2]
[325314537,1714704432845,-166.666666,0.00023969,2]
[325314538,1714704432865,-703.31224093,0.00024,2]
[325314539,1714704432891,-166.666666,0.00024482,2]
[325314540,1714704432910,-493.0,0.00025297,2]
[325314541,1714704432929,-150.0,0.00025297,2]
[325314542,1714704432951,-28007.38,0.0002698,3]
[325314543,1714704432972,-22039.97191009,0.0002699,3]
[325314577,1714704632957,-554.67642005,0.00020795,2]
[325314578,1714704632966,-266.803695,0.00020911,2]
[325314579,1714704632976,-156.57803365,0.00020912,2]
[325314580,1714704632985,-67460.37167158,0.00020913,2]
[325314581,1714704632994,-159.311331,0.00022,2]
[325314582,1714704633003,-714.56650019,0.00023,2]
[325314583,1714704633013,-554.67641998,0.00024033,2]
[325314584,1714704633022,-620.0,0.00024048,2]
[325314585,1714704633031,-166.666666,0.00024682,2]
[325314586,1714704633041,-620.0,0.0002525,2]
[325314587,1714704633049,-166.666666,0.00025355,2]
[325314588,1714704633059,-166.666666,0.00026028,2]
[325314589,1714704633068,-620.0,0.00026513,2]
[325314590,1714704633077,-166.666666,0.00026701,2]
[325314592,1714704633086,-757.41261472,0.0002699,2]
[325314593,1714704633095,-2000.0,0.0002699,2]
[325314595,1714704633105,-9381.55295255,0.00027,2]
[325314597,1714704633115,-5000.0,0.00027,2]
[325314599,1714704633124,-8534.85091698,0.00027,2]
[325314601,1714704633134,-160.53782,0.00027,5]
[325314603,1714704633143,-554.67641998,0.00027271,2]
[325314605,1714704633152,-166.666666,0.00027373,2]
[325314607,1714704633161,-25267.63,0.00027736,3]
[325314609,1714704633170,-1518.8,0.00027746,3]
[325314611,1714704633179,-588.0,0.000278,2]
[325314613,1714704633189,-221.07032047,0.00028,2]
[325314615,1714704633198,-166.666666,0.00028046,2]
[325314617,1714704633208,-493.0,0.00028297,2]
[325314620,1714704633217,-150.0,0.00028297,2]
[325314621,1714704633226,-358.18121,0.00028493,2]
[325314623,1714704633236,-354.703121,0.00028493,2]
[325314626,1714704633245,-747.96062919,0.0002857,2]
[325314694,1714704638890,-9053.29999965,0.00027726,3]
[325314846,1714704644050,-3030.4769314,0.00027726,3]
[325314852,1714704644089,-8972.58306895,0.00027726,3]
[325314854,1714704644100,-245.81298162,0.0002857,2]
[325314869,1714704647071,-1006.22638919,0.0002857,2]
[325314871,1714704647081,-306.0,0.00028588,2]
[325314873,1714704647090,-151.0,0.0002867,2]
[325314875,1714704647100,-151.0,0.0002867,2]
[325314877,1714704647109,-55555.0,0.0002867,3]
[325314879,1714704647119,-283.0,0.000287,2]
[325314881,1714704647128,-131335.01578715,0.0002877,2]
[325314885,1714704647248,-151.0,0.0002877,2]
[325314886,1714704647258,-151.0,0.0002877,2]
[325314887,1714704647269,-151.0,0.0002877,2]
[325314888,1714704647278,-203.9317258,0.00028803,2]
[325314889,1714704647288,-203.9317258,0.00028803,2]
[325314890,1714704647297,-203.4861004,0.00028803,2]
[325314891,1714704647307,-154.73694719,0.00029,2]
[325314892,1714704647318,-843.86378738,0.00029,2]
[325314893,1714704647327,-1518.8,0.00029087,3]
[325314894,1714704647336,-306.0338147,0.00029087,2]
[325314895,1714704647347,-60853.69681784,0.000299,2]
[325314912,1714705648186,-161.442647,0.00020889,2]
[325314913,1714705648212,-67460.37167158,0.00020911,2]
[325314914,1714705648232,-528.30786508,0.00020912,2]
[325314915,1714705648253,-256.01607085,0.00020912,2]
[325314916,1714705648272,-186.4747152,0.00020912,2]
[325314917,1714705648294,-6851.84017315,0.00020912,2]
[325314918,1714705648313,-923.59578149,0.00020912,2]
[325314919,1714705648333,-155.09191994,0.00020912,2]
[325314920,1714705648353,-166.666666,0.00021918,2]
[325314921,1714705648373,-159.311331,0.00022,2]
[325314922,1714705648392,-493.0,0.0002241,2]
[325314923,1714705648411,-150.0,0.0002241,2]
[325314924,1714705648432,-166.666666,0.00022431,2]
[325314925,1714705648452,-166.666666,0.00022944,2]
[325314926,1714705648471,-714.56650019,0.00023,2]
[325314927,1714705648491,-166.666666,0.00023456,2]
[325314928,1714705648511,-166.666666,0.00023969,2]
[325314929,1714705648530,-166.666666,0.00024482,2]
[325314930,1714705648551,-493.0,0.0002541,2]
[325314931,1714705648571,-150.0,0.0002541,2]
[325314932,1714705648592,-3000.0,0.00026999,2]
[325314933,1714705648613,-3000.0,0.00026999,2]
[325314934,1714705648634,-3000.0,0.00026999,2]
[325314935,1714705648654,-3000.0,0.00026999,2]
[325314936,1714705648674,-3000.0,0.00026999,2]
[325314937,1714705648693,-5442.79838637,0.00027,2]
[325314938,1714705648715,-5000.0,0.00027,2]
[325314939,1714705648735,-9381.55295255,0.00027,2]
[325314940,1714705648754,-1265.6,0.00027797,3]
[325314941,1714705648774,-221.07032047,0.00028,2]
[325314942,1714705648794,-493.0,0.0002841,2]
[325314943,1714705648814,-150.0,0.0002841,2]
[325314944,1714705648834,-154.69061876,0.00029,2]
[325314945,1714705648855,-273.85642037,0.00029133,3]
[325315051,1714705838171,-5748.44914376,0.00020913,2]
[325315052,1714705838181,-159.311331,0.00022,2]
[325315053,1714705838190,-714.56650019,0.00023,2]
[325315054,1714705838198,-8439.57302497,0.00027,2]
[325315092,1714705840626,-941.97992758,0.00027,2]
[325315093,1714705840636,-5000.0,0.00027,2]
[325315094,1714705840645,-1201.5,0.00027824,3]
[325315095,1714705840654,-221.07032047,0.00028,2]
[325315096,1714705840664,-164.894953,0.00028493,2]
[325315097,1714705840673,-154.67518212,0.00029,2]
[325315098,1714705840683,-2000.0,0.00029133,2]
[325315099,1714705840692,-757.41261472,0.00029133,2]
[325315101,1714705840701,-1201.5,0.00029158,3]
[325315102,1714705840710,-588.0,0.000295,2]
[325315103,1714705840720,-252.77788961,0.00029601,3]
[325315104,1714705840730,-17546.97,0.0002989,3]
[325315105,1714705840740,-14622.47,0.0002989,3]
[325315106,1714705840749,-72412.3364825,0.000299,2]
[325315107,1714705840762,-250.0,0.000299,2]
[325315133,1714705843636,-11981.53706691,0.000299,2]
[325315154,1714706949185,-211.04902596,0.00022,2]
[325315155,1714706949205,-714.56650019,0.00023374,2]
[325315156,1714706949225,-493.0,0.00023375,2]
[325315157,1714706949245,-166.666666,0.00024944,2]
[325315158,1714706949266,-166.666666,0.00025624,2]
[325315162,1714707020245,493.0,0.00023375,2]
[325315169,1714707033647,-166.666666,0.00026304,2]
[325315170,1714707033663,-493.0,0.00026375,2]
[325315171,1714707033673,-166.666666,0.00026984,2]
[325315172,1714707033683,-9381.55295255,0.00027,2]
[325315173,1714707033693,-166.666666,0.00027664,2]
[325315174,1714707033704,-5000.0,0.00027805,2]
[325315175,1714707033716,-937.1,0.00027806,3]
[325315176,1714707033726,-714.56650019,0.00028311,2]
[325315177,1714707033736,-153.4551898,0.00028312,2]
[325315178,1714707033746,-153.2269241,0.00028312,2]
[325315179,1714707033756,-166.666666,0.00028344,2]
[325315180,1714707033765,-160.431796,0.00028493,2]
[325315182,1714707033775,-340.272149,0.00028493,2]
[325315184,1714707033785,-306.0,0.00028723,2]
[325315185,1714707033794,-12532.95565144,0.00029,4]
[325315187,1714707033804,-156.07936896,0.00029,2]
[325315189,1714707033813,-153.0,0.00029134,2]
[325315191,1714707033823,-937.1,0.00029142,3]
[325315193,1714707033832,-493.0,0.00029375,2]
[325315195,1714707033841,-591.0,0.000296,2]
[325315197,1714707033851,-693.7301281,0.00029899,2]
[325315198,1714707033860,-8376.92274941,0.000299,2]
[325315263,1714707038663,-221.07032047,0.00028311,2]
[325315267,1714707038674,-24125.50688334,0.000299,2]
[325315271,1714707038683,-283.0,0.000299,2]
[325315273,1714707038694,-757.41261472,0.000299,2]
[325315274,1714707038704,-2000.0,0.000299,2]
[325315275,1714707038714,-153.0,0.00029953,2]
[325315276,1714707038725,-153.0,0.00029953,2]
[325315277,1714707038734,-153.0,0.00029974,2]
[325315279,1714707038743,-153.0,0.00029974,2]
[325315281,1714707038753,-153.0,0.00029974,2]
[325315282,1714707038762,-306.0,0.00029974,2]
[325315284,1714707038771,-153.0,0.00029974,2]
[325315285,1714707038781,-153.0,0.00029974,2]
[325315286,1714707038791,-150.0,0.00029999,2]
[325315287,1714707038800,-278.27641352,0.0003,2]
[325315288,1714707038810,-154.81422293,0.0003,4]
[325315290,1714707038820,-1966.77017511,0.0003,7]
[325315291,1714707038830,-577.32231329,0.0003,2]
[325315292,1714707038839,-176.62653573,0.0003,4]
[325315293,1714707038849,-191.0,0.0003,2]
[325315294,1714707038858,-156.2515924,0.00030147,2]
[325315295,1714707038868,-200.800433,0.00030411,2]
[325315296,1714707038879,-200.800433,0.00030411,120]
[325315297,1714707038888,-937.1,0.00030477,5]
[325315298,1714707038898,-150.0,0.00030998,2]
[325315299,1714707038908,-150.0,0.00030999,2]
[325315300,1714707038918,-276.39943109,0.00030999,2]
[325315301,1714707038927,-3817.86543001,0.00031,4]
[325315302,1714707038936,-1135.19637409,0.00031,4]
[325315303,1714707038946,-2022.38793818,0.00031,2]
[325315304,1714707038955,-501.91831464,0.00031,120]
[325315305,1714707038964,-1966.54213992,0.00031,2]
[325315306,1714707038975,-153.0,0.00031463,2]
[325315307,1714707038984,-306.0,0.00031542,2]
[325315308,1714707038993,-306.0,0.00031542,2]
[325315309,1714707039003,-153.0,0.00031726,2]
[325315310,1714707039013,-153.0,0.00031726,2]
[325315311,1714707039022,-153.0,0.00031726,2]
[325315312,1714707039032,-937.1,0.00031813,5]
[325315313,1714707039041,-447.32492958,0.00032,4]
[325315314,1714707039051,-500.0,0.00032,120]
[325315315,1714707039060,-153.0,0.00032285,2]
[325315316,1714707039069,-203.9317258,0.00032285,2]
[325315317,1714707039078,-153.0,0.00032285,2]
[325315318,1714707039197,-225.138,0.00032375,2]
[325315319,1714707039207,-7034.66198476,0.00033,2]
[325315320,1714707039217,-191.0,0.00033,2]
[325315321,1714707039227,-937.1,0.00033148,7]
[325315322,1714707039237,-12185.4,0.0003399,3]
[325315323,1714707039247,-466.5950793,0.00034,4]
[325315324,1714707039256,-2256.81880096,0.00034,2]
[325315325,1714707039265,-306.0,0.00034017,2]
[325315326,1714707039274,-354.703121,0.00034203,2]
[325315327,1714707039284,-340.272149,0.00034203,2]
[325315328,1714707039293,-306.0,0.00034302,2]
[325315329,1714707039302,-937.1,0.00034484,7]
[325315330,1714707039312,-1272.15156012,0.00034728,12]
[325315331,1714707039321,-1000.0,0.000348,3]
[325315332,1714707039331,-1000.0,0.000348,3]
[325315333,1714707039340,-16241.45505186,0.000349,2]
[325315334,1714707039351,-598.15577715,0.00035,2]
[325315335,1714707039361,-1159.01222463,0.00035,4]
[325315336,1714707039373,-5919.22626039,0.00035,4]
[325315337,1714707039382,-154.81422293,0.00035,2]
[325315338,1714707039391,-155.56154498,0.00035,30]
[325315339,1714707039400,-7000.0,0.00035,120]
[325315340,1714707039410,-154.7215013,0.00035,4]
[325315341,1714707039419,-1909.71310292,0.00035,30]
[325315342,1714707039430,-387.18238451,0.00035,30]
[325315343,1714707039440,-153.0,0.00035104,2]
[325315344,1714707039450,-164.894953,0.00035274,2]
[325315345,1714707039459,-896.20099633,0.00035616,120]
[325315397,1714707043956,-428.71968595,0.000289,2]
[325315398,1714707043966,-732.41525409,0.0003499,3]
[325315407,1714707064628,757.41261472,0.00025624,2]
[325315408,1714707123086,757.41261472,0.00025624,2]
[325315409,1714707131960,2000.0,0.00025624,2]
[325315410,1714707139058,757.41261472,0.00025624,2]
[325315411,1714707147971,2000.0,0.00025624,2]
[325315413,1714707932262,-714.56650019,0.00024382,2]
[325315414,1714707932283,-1000.0,0.00025,2]
[325315415,1714707932305,-347.70328078,0.00025624,2]
[325315416,1714707932325,-2000.0,0.00025624,2]
[325315417,1714707932344,-154.7215013,0.00025624,2]
[325315418,1714707932364,-2787.35240269,0.00027,2]
[325315419,1714707945087,-2212.64759731,0.00027,2]
[325315420,1714707945105,-9381.55295255,0.00027,2]
[325315421,1714707945125,-166.666666,0.00027279,2]
[325315422,1714707945143,-163.2513858,0.00027857,2]
[325315423,1714707945162,-468.5,0.00027883,3]
[325315424,1714707945181,-166.666666,0.00028022,2]
[325315425,1714707945199,-319.232808,0.00028493,2]
[325315426,1714707945218,-166.666666,0.00028766,2]
[325315427,1714707945237,-468.5,0.00029212,3]
[325315428,1714707945255,-166.666666,0.0002951,2]
[325315429,1714707945274,-375.12972518,0.000299,2]
[325315430,1714707945291,-154.67518212,0.0003,4]
[325315431,1714707945309,-191.0,0.0003,2]
[325315432,1714707945327,-1967.23254635,0.0003,7]
[325315433,1714707945345,-176.62653573,0.00030253,4]
[325315434,1714707945363,-166.666666,0.00030254,2]
[325315435,1714707945382,-468.5,0.0003054,5]
[325315436,1714707945399,-166.666666,0.00030997,2]
[325315437,1714707945420,-161.442647,0.00031116,2]
[325315438,1714707945440,-375.12972517,0.00031642,2]
[325315439,1714707945460,-468.5,0.00031869,5]
[325315440,1714707945478,-447.45061743,0.00032,4]
[325315441,1714707945499,-6268.7358939,0.00032725,2]
[325315442,1714707945517,-468.5,0.00033197,7]
[325315443,1714707945537,-375.12972517,0.00033383,2]
[325315444,1714707945555,-380.54213809,0.00034,2]
[325315445,1714707945573,-466.73173475,0.00034202,4]
[325315446,1714707945592,-319.232808,0.00034203,2]
[325315447,1714707945611,-468.5,0.00034526,7]
[325315448,1714707945629,-153.0,0.00034879,2]
[325315449,1714707945648,-153.0,0.00034958,2]
[325315450,1714707945668,-153.0,0.00034958,2]
[325315451,1714707945686,-153.0,0.00034958,2]
[325315452,1714707945704,-153.0,0.00034958,2]
[325315453,1714707945722,-153.0,0.00034958,2]
[325315454,1714707945740,-153.0,0.00034958,2]
[325315455,1714707945757,-153.0,0.00034958,2]
[325315456,1714707945777,-153.0,0.00034958,2]
[325315457,1714707945795,-1159.31784077,0.00035,4]
[325315458,1714707945814,-598.33465811,0.00035,2]
[325315459,1714707945833,-375.12972517,0.00035125,2]
[325315460,1714707945852,-225.0,0.000352,9]
[325315461,1714707945872,-242.14351359,0.00035259,4]
[325315462,1714707945893,-153.0,0.00035287,2]
[325315463,1714707945914,-153.0,0.00035287,2]
[325315464,1714707945936,-153.0,0.00035378,2]
[325315465,1714707945956,-153.0,0.00035378,2]
[325315466,1714707945976,-153.0,0.00035378,2]
[325315467,1714707945996,-153.0,0.00035378,2]
[325315468,1714707946018,-153.0,0.00035378,2]
[325315469,1714707946037,-153.0,0.00035378,2]
[325315470,1714707946058,-153.0,0.00035594,2]
[325315471,1714707946078,-156.7409848,0.00035594,2]
[325315472,1714707946098,-153.0,0.00035594,2]
[325315473,1714707946120,-153.0,0.00035594,2]
[325315474,1714707946140,-153.0,0.00035594,2]
[325315475,1714707946159,-153.0,0.00035594,2]
[325315476,1714707946178,-153.0,0.00035594,2]
[325315477,1714707946197,-153.0,0.00035594,2]
[325315478,1714707946218,-153.0,0.00035594,2]
[325315479,1714707946239,-153.0,0.00035594,2]
[325315480,1714707946260,-153.0,0.00035594,2]
[325315481,1714707946279,-153.0,0.00035594,2]
[325315482,1714707946299,-153.0,0.00035594,2]
[325315483,1714707946317,-153.0,0.00035594,2]
[325315484,1714707946337,-153.0,0.00035594,2]
[325315485,1714707946358,-153.0,0.00035594,2]
[325315486,1714707946377,-272.3254629,0.00035616,2]
[325315487,1714707946397,-2000.0,0.00035616,7]
[325315488,1714707946416,-505.28924702,0.00035616,8]
[325315489,1714707946436,-580.43196424,0.00035616,120]
[325315490,1714708214473,211.309,0.00024916,2]
[325315586,1714708238570,-234.3,0.00027961,3]
[325315587,1714708238579,-234.3,0.00029282,3]
[325315588,1714708238588,-234.3,0.00030604,5]
[325315589,1714708238597,-75.36040944,0.0003125,2]
[325315600,1714708244230,-176.62653573,0.00031249,4]
[325315601,1714708244240,-884.70974436,0.0003125,2]
[325315602,1714708244250,-234.3,0.00031925,5]
[325315603,1714708244259,-447.45061743,0.00032,4]
[325315604,1714708244269,-1967.23254635,0.00032272,7]
[325315605,1714708244278,-234.3,0.00033247,7]
[325315606,1714708244287,-339.54249115,0.00034,4]
[325315625,1714709360114,-159.311331,0.00022,2]
[325315626,1714709360135,-714.56650019,0.00024382,2]
[325315627,1714709360156,-166.666666,0.00024864,2]
[325315628,1714709360177,-493.0,0.00024916,2]
[325315629,1714709360197,-296.202,0.00024916,2]
[325315630,1714709360217,-161.442647,0.00025053,2]
[325315631,1714709360237,-166.666666,0.00025542,2]
[325315632,1714709360257,-166.666666,0.0002622,2]
[325315633,1714709360277,-166.666666,0.00026897,2]
[325315634,1714709406764,5005.75136771,0.00022135,2]
[325315635,1714709427808,2000.0,0.00022135,2]
[325315669,1714709432331,-5000.0,0.00027,2]
[325315670,1714709432347,-9381.55295255,0.00027,2]
[325315671,1714709432361,-166.666666,0.00027575,2]
[325315672,1714709432375,-391.5,0.0002785,3]
[325315673,1714709432389,-221.07032047,0.00028252,2]
[325315674,1714709432403,-166.666666,0.00028253,2]
[325315675,1714709432418,-159.315433,0.00028493,2]
[325315676,1714709432432,-160.431796,0.00028493,2]
[325315677,1714709432446,-187.56486262,0.00028668,2]
[325315678,1714709432459,-596.64,0.0002876,3]
[325315679,1714709432474,-6851.84017315,0.00028768,2]
[325315680,1714709432488,-186.4747152,0.00028768,2]
[325315681,1714709432502,-528.30786508,0.00028768,2]
[325315682,1714709432516,-923.59578149,0.00028768,2]
[325315683,1714709432530,-256.01607085,0.00028768,2]
[325315684,1714709432543,-5442.79838637,0.00028768,2]
[325315685,1714709432557,-155.09191994,0.00028768,2]
[325315686,1714709432570,-159.27807126,0.00028768,2]
[325315687,1714709432584,-714.56650019,0.00028768,2]
[325315688,1714709432599,-447.66572844,0.00028769,2]
[325315689,1714709432613,-49649.44422283,0.0002877,2]
[325315690,1714709432626,-154.69061876,0.00029,2]
[325315691,1714709432641,-391.5,0.00029182,3]
[325315692,1714709432656,-176.62653573,0.0003,4]
[325315693,1714709432670,-1967.23254635,0.0003,7]
[325315694,1714709432685,-187.56486258,0.00030507,2]
[325315695,1714709432700,-391.5,0.00030513,5]
[325315696,1714709432713,-391.5,0.00031845,5]
[325315697,1714709432727,-187.56486258,0.00032347,2]
[325315698,1714709432741,-391.5,0.00033176,7]
[325315699,1714709432755,-588.0,0.000341,2]
[325315700,1714709432770,-187.56486258,0.00034186,2]
[325315701,1714709432784,-159.315433,0.00034203,2]
[325315702,1714709432798,-153.0,0.00034454,2]
[325315703,1714709432811,-153.0,0.00034454,2]
[325315704,1714709432824,-306.0,0.00034454,2]
[325315705,1714709432839,-391.5,0.00034508,7]
[325315706,1714709432850,-153.0,0.00034556,2]
[325315707,1714709432860,-153.0,0.00034556,2]
[325315708,1714709432870,-153.0,0.00034556,2]
[325315709,1714709432880,-153.0,0.00034556,2]
[325315710,1714709432890,-153.0,0.00034556,2]
[325315711,1714709432900,-153.0,0.00034556,2]
[325315712,1714709433093,-153.0,0.00034556,2]
[325315713,1714709433105,-153.0,0.00034556,2]
[325315714,1714709433114,-153.0,0.00034556,2]
[325315715,1714709433124,-153.0,0.00034556,2]
[325315716,1714709433133,-153.0,0.00034556,2]
[325315717,1714709433142,-153.0,0.00034556,2]
[325315718,1714709433151,-153.0,0.00034556,2]
[325315719,1714709433160,-466.73173475,0.00034567,4]
[325315720,1714709433170,-153.0,0.00034772,2]
[325315721,1714709433179,-445.136636,0.00034805,2]
[325315722,1714709433189,-1159.31784077,0.00035,4]
[325315723,1714709433198,-598.33465811,0.00035,2]
[325315724,1714709433207,-154.67518212,0.00035,2]
[325315725,1714709433216,-153.0,0.00035276,2]
[325315726,1714709433225,-306.0,0.00035276,2]
[325315727,1714709433236,-153.0,0.00035276,2]
[325315728,1714709433245,-153.0,0.00035287,2]
[325315729,1714709433255,-153.0,0.00035287,2]
[325315730,1714709433264,-155.1673623,0.00035287,2]
[325315731,1714709433273,-153.0,0.00035287,2]
[325315732,1714709433282,-306.0,0.00035594,2]
[325315733,1714709433291,-283.0,0.000356,9]
[325315734,1714709433304,-153.0,0.00035601,2]
[325315735,1714709433313,-19974.14,0.00035606,3]
[325315736,1714709433322,-153.0,0.00035616,2]
[325315737,1714709433332,-153.0,0.00035616,2]
[325315738,1714709433342,-153.0,0.00035616,2]
[325315739,1714709433353,-153.0,0.00035616,2]
[325315740,1714709433362,-153.0,0.00035616,2]
[325315741,1714709433371,-153.0,0.00035616,2]
[325315742,1714709433380,-153.0,0.00035616,2]
[325315743,1714709433390,-153.0,0.00035616,2]
[325315744,1714709433400,-153.0,0.00035616,2]
[325315745,1714709433410,-153.0,0.00035616,2]
[325315746,1714709433419,-153.0,0.00035616,2]
[325315747,1714709433428,-153.0,0.00035616,2]
[325315748,1714709433437,-153.0,0.00035616,2]
[325315749,1714709433446,-153.0,0.00035616,2]
[325315750,1714709433457,-1351.401175,0.00035616,120]
[325315751,1714709433467,-391.5,0.00035839,14]
[325315752,1714709433476,-219.19139196,0.00036,30]
[325315753,1714709433486,-150.0,0.00036,10]
[325315754,1714709433495,-350.0,0.00036,4]
[325315755,1714709433504,-234.345776,0.00036001,2]
[325315756,1714709433513,-23961.1237,0.00036001,30]
[325315757,1714709433523,-187.56486258,0.00036025,2]
[325315758,1714709433532,-5000.0,0.0003609,2]
[325315759,1714709433541,-153.0,0.00036438,2]
[325315760,1714709433550,-153.0,0.00036438,2]
[325315761,1714709433559,-153.0,0.00036438,2]
[325315762,1714709433568,-153.0,0.00036438,2]
[325315763,1714709433577,-153.0,0.00036438,2]
[325315764,1714709433586,-153.0,0.00036438,2]
[325315765,1714709433596,-153.0,0.00036438,2]
[325315766,1714709433604,-153.0,0.00036438,2]
[325315767,1714709433613,-153.0,0.00036438,2]
[325315768,1714709433623,-153.0,0.00036438,2]
[325315769,1714709433632,-153.0,0.00036438,2]
[325315770,1714709433641,-153.0,0.00036438,2]
[325315771,1714709433650,-153.0,0.00036438,2]
[325315772,1714709433659,-153.0,0.00036438,2]
[325315773,1714709433668,-153.0,0.00036438,2]
[325315774,1714709433677,-276.7295646,0.00036438,2]
[325315775,1714709433686,-407.8634516,0.00036438,2]
[325315776,1714709433696,-608.08364,0.00036463,2]
[325315777,1714709433705,-10000.0,0.000365,20]
[325315778,1714709433714,-249.142801,0.000365,2]
[325315779,1714709433723,-249.142801,0.000365,2]
[325315780,1714709433732,-608.08364,0.00036599,2]
[325315781,1714709433741,-608.08365,0.00036735,2]
[325315782,1714709433750,-306.0,0.00036767,2]
[325315783,1714709433759,-5000.0,0.00036787,2]
[325315784,1714709433768,-348.893913,0.00036787,2]
[325315785,1714709433777,-348.893913,0.00036787,2]
[325315786,1714709433786,-608.08364,0.00036871,2]
[325315787,1714709433795,-160.0,0.00036957,3]
[325315788,1714709433804,-10670.17865673,0.00037,5]
[325315789,1714709433814,-1980.26055312,0.00037,2]
[325315790,1714709433823,-10131.62511036,0.00037,4]
[325315791,1714709433831,-581.09928,0.00037,2]
[325315792,1714709433840,-348.893913,0.00037,2]
[325315793,1714709433850,-348.893913,0.00037,2]
[325315794,1714709433859,-249.142801,0.00037,2]
[325315795,1714709433868,-249.142801,0.00037,2]
[325315796,1714709433877,-608.08365,0.00037007,2]
[325315797,1714709433886,-155.7834428,0.00037041,4]
[325315798,1714709433896,-608.08364,0.00037143,2]
[325315799,1714709433905,-160.0,0.00037169,4]
[325315800,1714709433914,-391.5,0.00037171,14]
[325315801,1714709433923,-608.08364,0.00037279,2]
[325315802,1714709433933,-160.0,0.0003738,5]
[325315803,1714709433942,-608.08365,0.00037415,2]
[325315804,1714709433951,-1002.16701575,0.000375,4]
[325315805,1714709433961,-249.142801,0.000375,2]
[325315806,1714709433972,-249.142801,0.000375,2]
[325315807,1714709433981,-160.431796,0.00037534,2]
[325315808,1714709433991,-608.08364,0.00037551,2]
[325315809,1714709434000,-153.0,0.00037589,2]
[325315810,1714709434009,-160.0,0.00037592,6]
[325315811,1714709434019,-5000.0,0.0003766,2]
[325315812,1714709434028,-151.992492,0.0003766,2]
[325315813,1714709434038,-151.0,0.0003766,2]
[325315814,1714709434047,-151.0,0.0003766,2]
[325315815,1714709434058,-151.0,0.0003766,2]
[325315816,1714709434067,-151.0,0.0003766,2]
[325315817,1714709434076,-213.655671,0.0003766,2]
[325315818,1714709434085,-213.655671,0.0003766,2]
[325315819,1714709434094,-151.0,0.0003766,2]
[325315820,1714709434103,-155.180038,0.0003766,2]
[325315821,1714709434113,-608.08365,0.00037688,2]
[325315822,1714709434123,-448.86909451,0.00037797,4]
[325315823,1714709434133,-160.63914917,0.00037798,10]
[325315824,1714709434143,-581.09928,0.00037798,2]
[325315825,1714709434152,-3000.0,0.00037798,10]
[325315826,1714709434162,-3000.0,0.00037798,10]
[325315827,1714709434172,-3000.0,0.00037798,10]
[325315828,1714709434181,-3000.0,0.00037798,10]
[325315829,1714709434190,-3000.0,0.00037798,10]
[325315830,1714709434200,-249.142801,0.00037798,2]
[325315831,1714709434209,-249.142801,0.00037798,2]
[325315832,1714709434218,-67460.37167158,0.00037799,4]